Cogmind - Beta 11 @@@ ROGUE MODE // 2022.04.08 @ 14:51:21 Player: DaddyWalrus Result: Destroyed by Lightning with EMDS Performance ------------- Evolutions (4) 2000 Regions Visited (9) 1800 Robots Destroyed (155) 775 Value Destroyed (5280) 5280 Prototype IDs (7) 140 Alien Tech Used (0) 0 Bonus (2405) 2405 TOTAL SCORE: 12400 Bonus ------- High Alert Combat Kills 239 Follower Combat Kills 1299 Network Hubs Disabled 400 Built Enhanced Grunts 300 A7 Reached Mainframe 300 Friendly Fire -133 Cogmind --------- Core Integrity 0/850 Matter 252/300 Energy 150/150 System Corruption 3% Temperature Cool (0) Movement Walking (120) Location -6/Hub_04(d) Parts ------- > --- POWER (1) -------- Light Angular Momentum Engine > --- PROPULSION (4) --- Carbon-fiber Leg Carbon-fiber Leg Flexi-carbon Leg Flexi-carbon Leg > --- UTILITY (8) ------ Medium Storage Unit Enhanced Optical Array Improved Utility Shielding Improved Medium Armor Plating Improved Hacking Suite Improved Hacking Suite Advanced Hacking Suite Improved System Shield > --- WEAPON (2) ------- Great Maul Heavy Pick > --- INVENTORY (10) --- Light Angular Momentum Engine Gravmag System Gravmag System Gravmag System Advanced ECM Suite Layered Medium Armor Plating Improved Hacking Suite Long-range Missile Launcher Power Sword Peak State ------------ > --- POWER ------------ Light Angular Momentum Engine > --- PROPULSION ------- Gravmag Array Antigrav Array > --- UTILITY ---------- Medium Storage Unit Enhanced Optical Array Advanced Signal Interpreter Improved Utility Shielding Hacking Suite Hacking Suite Advanced Hacking Suite System Shield > --- WEAPON ----------- Long-range Missile Launcher Power Sword > --- INVENTORY -------- Antimatter Reactor Improved Gravmag System Advanced ECM Suite Improved Reaction Control System Improved Utility Shielding Layered Medium Armor Plating System Shield Gauss Rifle Great Maul Spear [Rating: 74] Favorites ----------- Power Light Angular Momentum Engine Engine Light Angular Momentum Engine Power Core Light Nuclear Core Reactor Antimatter Reactor Propulsion Light Treads Treads Light Treads Leg Aluminum Leg Wheel Wheel Hover Unit Improved Gravmag System Flight Unit Xenon Bombardment Thruster Utility Hacking Suite Device Improved Heat Sink Storage High-capacity Storage Unit Processor Advanced Signal Interpreter Hackware Hacking Suite Protection Improved Light Armor Plating Weapon Shotgun Energy Gun Small Laser Ballistic Gun Shotgun Launcher Long-range Missile Launcher Impact Weapon Great Maul Slashing Weapon Power Sword Piercing Weapon Spear Build | -11 -10 -9 -8 -7 -6 -6 -6 -6 -6 ------- Run | Scr Mat Mat Mat Fac Fac Ext Cet Arc Hub Slots Evolved 8 | . . 2 2 2 2 . . . . Power . | . . . . . . . . . . Propulsion 2 | . . 1 1 . . . . . . Utility 6 | . . 1 1 2 2 . . . . Weapon . | . . . . . . . . . . Parts Attached 207 | 6 20 38 23 37 26 10 14 22 11 Power 24 | 1 1 6 4 4 2 2 1 2 1 Engine 16 | 1 1 6 1 1 1 2 1 1 1 Core 7 | . . . 3 3 1 . . . . Reactor 1 | . . . . . . . . 1 . Propulsion 81 | 2 12 22 9 15 4 1 1 10 5 Treads 27 | 1 6 16 2 . . . . 2 . Leg 6 | . . . . 2 . . . . 4 Wheel 16 | 1 6 6 . 3 . . . . . Hover 29 | . . . 7 7 4 1 1 8 1 Flight 3 | . . . . 3 . . . . . Utility 55 | 1 4 5 8 9 15 5 2 4 2 Device 9 | . 1 . 1 1 5 1 . . . Storage 8 | 1 2 . 1 1 2 1 . . . Processor 7 | . . 1 1 2 3 . . . . Hackware 12 | . . . . 4 3 . 1 4 . Protection 19 | . 1 4 5 1 2 3 1 . 2 Artifact . | . . . . . . . . . . Weapon 47 | 2 3 5 2 9 5 2 10 6 3 Energy Gun 4 | . 1 . . 2 1 . . . . Energy Cannon . | . . . . . . . . . . Ballistic Gun 18 | 2 2 5 1 5 1 . . 2 . Ballistic Cannon . | . . . . . . . . . . Launcher 7 | . . . 1 . . 1 3 1 1 Special Weapon . | . . . . . . . . . . Impact Weapon 7 | . . . . 2 1 . 2 1 1 Slashing Weapon 7 | . . . . . 1 1 4 1 . Piercing Weapon 4 | . . . . . 1 . 1 1 1 Special Melee Weapon . | . . . . . . . . . . Unidentified Prototypes 3 | . . 2 1 . . . . . . Parts Lost 55 | . 4 7 7 23 3 4 1 3 3 Power 8 | . 1 . 2 1 . 2 . 1 1 Propulsion 26 | . 2 3 4 11 1 1 1 2 1 Utility 10 | . . . 1 5 2 1 . . 1 Weapon 11 | . 1 4 . 6 . . . . . Highest Loss Streak 12 | . 4 2 3 12 2 2 3 3 2 To Critical Strikes . | . . . . . . . . . . Average Slot Usage (%) 94 | . 99 99 96 86 86 92 86 92 99 Engine 7 | . 14 11 4 2 2 6 6 2 6 Core 1 | . . . 4 4 2 . . . . Treads 12 | . 15 29 20 . . . . 4 . Wheel 3 | . 12 3 . 4 . . . . . Hover 9 | . . . 14 14 17 19 13 16 17 Device 5 | . 5 9 3 2 8 5 . . . Storage 8 | . 14 11 9 6 3 6 6 6 6 Processor 7 | . . 1 9 11 12 13 13 13 12 Hackware 10 | . . . . 16 19 20 24 26 26 Protection 7 | . 7 11 11 1 5 6 7 6 6 Ballistic Gun 12 | . 24 21 17 11 . . . 2 . Slashing Weapon 2 | . . . . . 4 5 4 4 5 Piercing Weapon 1 | . . . . . 4 6 5 1 6 Naked Turns . | . . . . . . . . . . Heaviest Build 71 | 14 52 60 71 27 28 33 35 37 37 Greatest Support 80 | 16 16 60 80 34 40 40 46 46 70 Greatest Overweight (x) 5 | . 4 5 1 3 1 . 1 3 . Average Overweight (x) . | . 2 1 . . . . . . . Largest Inventory Capacity 25 | 8 20 20 20 10 10 25 10 10 10 Average Capacity 13 | 6 16 20 15 9 7 10 10 10 10 Most Carried 20 | 6 20 20 20 10 10 10 10 10 10 Average Carried 13 | 3 14 19 15 9 6 9 8 9 9 Final Capacity 20 | 8 20 20 10 5 10 10 10 10 10 Final Carried 20 | 6 20 19 10 5 10 10 10 10 9 Class Distribution -------------------- 33% | Scavenger-Mutant 27% | Mutant 21% | Hacker-Mutant 12% | Hacker-Scout 5% | Commander-Scout Dominant Class ---------------- Mutant | -10/Materials Scavenger-Mutant | -9/Materials Scavenger-Mutant | -8/Materials Scavenger-Mutant | -7/Factory Hacker-Mutant | -6/Factory Hacker-Scout | -6/Extension Hacker-Mutant | -6/Cetus Hacker-Mutant | -6/Archives Hacker-Mutant | -6/Hub_04(d) Resources | -11 -10 -9 -8 -7 -6 -6 -6 -6 -6 ----------- Run | Scr Mat Mat Mat Fac Fac Ext Cet Arc Hub Matter Collected 4567 | 236 635 1293 719 623 276 115 300 288 82 Remotely . | . . . . . . . . . . Salvage Created 6293 | . 621 1554 1272 700 282 778 44 578 464 Parts 330 | . 30 81 57 55 19 27 4 30 27 Haulers Intercepted 5 | . . 1 3 . . 1 . . . Recyclers Shooed 1 | . 1 . . . . . . . . Parts Field Recycled . | . . . . . . . . . . Retrieved Matter . | . . . . . . . . . . Parts Self-Destructed . | . . . . . . . . . . Prevented . | . . . . . . . . . . Kills | -11 -10 -9 -8 -7 -6 -6 -6 -6 -6 ------- Run | Scr Mat Mat Mat Fac Fac Ext Cet Arc Hub Combat Hostiles Destroyed 96 | . 11 33 20 14 . 9 2 4 3 Melee 14 | . . . . . . 9 . 2 3 Guns 79 | . 11 33 20 14 . . . 1 . AOE 2 | . . . . . . . 2 . . Classes Destroyed 15 | . 4 6 1 2 . 2 . . . Worker 14 | . 2 3 . 2 3 . . . 4 Builder 4 | . . . . 2 . 1 . . 1 Tunneler 1 | . . 1 . . . . . . . Hauler 5 | . . 1 3 . . 1 . . . Recycler 6 | . 1 . 2 . 1 1 . . 1 Operator 17 | . 1 3 . 1 1 1 . 9 1 Watcher 12 | . . 3 2 1 2 . 2 . 2 Swarmer 5 | . . . 4 . . 1 . . . Grunt 57 | . 11 21 10 9 . 3 . . 3 Brawler 2 | . . 1 1 . . . . . . Duelist 2 | . . 1 1 . . . . . . Sentry 21 | . . 10 4 1 . 2 . 4 . Programmer 5 | . . . . 4 . 1 . . . Behemoth 1 | . . . . . . 1 . . . Cetus Guard 2 | . . . . . . . 2 . . Guerrilla 1 | . . . . . . 1 . . . Best Kill Streak 8 | . 4 4 6 3 3 3 3 8 5 Combat Bots Only 5 | . 4 3 5 2 . 2 2 2 3 Max Kills in Single Turn 5 | . 2 2 1 1 1 1 1 1 5 Gunslinging 1 | . 1 . . . . . . . . Exploded 1 | . . . . . . . 1 . . Melee 1 | . . . . . . 1 . 1 1 Uniques/NPCs Destroyed . | . . . . . . . . . . Combat | -11 -10 -9 -8 -7 -6 -6 -6 -6 -6 -------- Run | Scr Mat Mat Mat Fac Fac Ext Cet Arc Hub Damage Taken 8567 | . 853 1648 1164 1772 65 817 509 755 984 Core 1684 | . 149 134 128 404 49 158 129 185 348 Absorbed by Shields 264 | . . . . . . 178 86 . . Redirected to Shielding 89 | . 16 . . . . . 47 . 26 Core Remaining (%) 64 | 100 40 66 76 42 . . . . . Volleys Fired 350 | . 54 125 81 65 . 1 11 11 2 Largest 2 | . 2 2 2 2 . 1 1 2 1 Hottest 130 | . 60 46 46 130 . 43 43 61 43 Shots Fired 677 | . 102 248 162 129 . 1 11 22 2 Gun 663 | . 102 248 162 129 . . . 22 . Cannon . | . . . . . . . . . . Launcher 14 | . . . . . . 1 11 . 2 Special . | . . . . . . . . . . Kinetic 628 | . 92 248 162 104 . . . 22 . Thermal 35 | . 10 . . 25 . . . . . Explosive 14 | . . . . . . 1 11 . 2 Electromagnetic . | . . . . . . . . . . Robot Hit Streak 24 | . 9 20 24 17 . . 14 16 . Robot Miss Streak 11 | . 4 5 5 11 . . . 3 . Penetration Max . | . . . . . . . . . . Secondary Targets 6 | . 2 3 1 . . . . . . Max Gunslinging Chain 1 | . 1 1 1 . . . . . . Shots Hit Robots 602 | . 61 195 117 103 13 43 9 49 12 Core Hits 333 | . 30 94 53 76 7 16 26 16 15 Critical Kills 1 | . . . . . . . . 1 . Critical Parts Destroyed 1 | . . . . . . . . 1 . Critical Strikes 11 | . . . . . 1 4 . 6 . Smash 3 | . . . . . . . . 3 . Sever 8 | . . . . . 1 4 . 3 . Melee Attacks 171 | . . . . 3 26 56 12 44 30 Impact 27 | . . . . 3 . . 10 14 . Slashing 94 | . . . . . 17 45 . 28 4 Piercing 50 | . . . . . 9 11 2 2 26 Sneak Attacks 28 | . . . . 1 7 7 . 10 3 Combat Hostiles 2 | . . . . . . 2 . . . Follow-up Attacks 10 | . . . . . 2 5 . 3 . Damage Inflicted 14539 | . 808 2946 1816 1672 813 1918 1241 2235 1090 Guns 7466 | . 808 2939 1816 1558 . . . 345 . Cannons . | . . . . . . . . . . Explosions 1895 | . . . . . . . 1241 . 654 Melee 5166 | . . . . 114 813 1918 . 1885 436 Ramming 12 | . . 7 . . . . . 5 . Kinetic 7185 | . 766 2939 1816 1319 . . . 345 . Thermal 281 | . 42 . . 239 . . . . . Explosive 1241 | . . . . . . . 1241 . . Electromagnetic 654 | . . . . . . . . . 654 Impact 537 | . . . . 114 . . . 423 . Slashing 3938 | . . . . . 735 1741 . 1462 . Piercing 691 | . . . . . 78 177 . . 436 Highest Corruption 11 | . 1 . 4 11 . . . . 2 Average Corruption 4 | . 1 . 3 6 . . . . 1 Corruption Purged . | . . . . . . . . . . Corruption Blocked . | . . . . . . . . . . Effects 25 | . 6 . 1 17 . . . . 1 Message Errors 3 | . 2 . . 1 . . . . . Matter Fused 5 | . . . . 5 . . . . . Heat Flow Errors 6 | . 3 . . 2 . . . . 1 Energy Discharges 4 | . 1 . 1 2 . . . . . Data Loss (minor) 3 | . . . . 3 . . . . . Data Loss (major) 1 | . . . . 1 . . . . . Misfires 1 | . . . . 1 . . . . . Misdirections 1 | . . . . 1 . . . . . Weapon Failures 1 | . . . . 1 . . . . . Overload Shots . | . . . . . . . . . . Overflow Damage 829 | . . . . 84 176 189 34 329 17 Projectiles . | . . . . . . . . . . Explosions 51 | . . . . . . . 34 . 17 Melee 778 | . . . . 84 176 189 . 329 . Knockbacks . | . . . . . . . . . . Impact . | . . . . . . . . . . Kinetic . | . . . . . . . . . . Secondary . | . . . . . . . . . . Self-Inflicted Damage 132 | . . . . . . . . 2 130 Shots 2 | . . . . . . . . . 2 Rammed 2 | . . 1 . . . . . 1 . Targets Rammed 2 | . . 1 . . . . . 1 . Kicked . | . . . . . . . . . . Crushed . | . . . . . . . . . . Highest Temperature 486 | . 486 13 53 220 . 8 . 3 169 Average Temperature 74 | . 196 7 16 57 . 7 . 3 76 Received Heat Transfer 2741 | . 390 720 450 522 6 248 45 135 225 Effects 4 | . 4 . . . . . . . . Shutdowns 1 | . 1 . . . . . . . . Damage (major) 3 | . 3 . . . . . . . . Siege Activations . | . . . . . . . . . . Robots Corrupted . | . . . . . . . . . . Combat Hostiles . | . . . . . . . . . . Parts Fried 4 | . . . . . . 3 . . 1 Impact Corruptions 3 | . . . . 1 . . . 2 . Robots Melted . | . . . . . . . . . . Combat Hostiles . | . . . . . . . . . . Parts Melted 1 | . . . . 1 . . . . . Heat Transferred 692 | . 100 . . 592 . . . . . Parts Sabotaged . | . . . . . . . . . . Parts Stolen . | . . . . . . . . . . Parts Stripped . | . . . . . . . . . . Power Chain Reactions . | . . . . . . . . . . Missiles Intercepted . | . . . . . . . . . . Alert | -11 -10 -9 -8 -7 -6 -6 -6 -6 -6 ------- Run | Scr Mat Mat Mat Fac Fac Ext Cet Arc Hub Peak Influence 755 | . 288 517 460 344 248 754 755 423 600 Initial 410 | . . . 102 209 88 . 410 277 81 Average 231 | . 105 286 270 265 87 226 602 331 116 Maximum Alert Level 3 | . 1 2 2 1 1 3 3 2 2 Low Security (%) 47 | 100 86 28 35 8 86 63 . . 92 Level 1 38 | . 13 51 51 91 13 17 . 87 . Level 2 12 | . . 19 13 . . 11 77 12 7 Level 3 1 | . . . . . . 7 22 . . Level 4 . | . . . . . . . . . . Level 5 . | . . . . . . . . . . High Security . | . . . . . . . . . . Max Security . | . . . . . . . . . . Squads Dispatched 32 | . 2 6 6 8 4 4 1 . 1 Investigation 13 | . 1 3 . 3 4 1 1 . . Extermination 2 | . . . . 2 . . . . . Reinforcement 10 | . 1 3 2 2 . 1 . . 1 Assault 2 | . . . . . . 2 . . . Garrison 5 | . . . 4 1 . . . . . Intercept . | . . . . . . . . . . Searches Triggered . | . . . . . . . . . . Construction Impeded . | . . . . . . . . . . Haulers Reinforced 1 | . . . . 1 . . . . . Active Scanning Responses . | . . . . . . . . . . Cargo Convoy Interrupts . | . . . . . . . . . . Stealth | -11 -10 -9 -8 -7 -6 -6 -6 -6 -6 --------- Run | Scr Mat Mat Mat Fac Fac Ext Cet Arc Hub Distress Signals 6 | . 1 1 3 . . 1 . . . Communications Jammed . | . . . . . . . . . . Distress Signals . | . . . . . . . . . . Times Spotted 241 | . 26 51 27 26 16 52 16 11 16 Peak Tracking Total 14 | . 3 3 6 6 6 13 6 2 14 Tactical Retreats 17 | . 1 3 . 4 3 4 1 . 1 Traps | -11 -10 -9 -8 -7 -6 -6 -6 -6 -6 ------- Run | Scr Mat Mat Mat Fac Fac Ext Cet Arc Hub Traps Triggered 16 | . 1 . 2 5 2 3 . . 3 Indirectly 3 | . . . . . . . . . 3 Trap Hack Attempts . | . . . . . . . . . . Triggered . | . . . . . . . . . . Disarmed . | . . . . . . . . . . Reprogrammed . | . . . . . . . . . . Reused . | . . . . . . . . . . Traps Extracted . | . . . . . . . . . . Installed . | . . . . . . . . . . Triggered . | . . . . . . . . . . Machines | -11 -10 -9 -8 -7 -6 -6 -6 -6 -6 ---------- Run | Scr Mat Mat Mat Fac Fac Ext Cet Arc Hub Machines Disabled 18 | . . 1 . . . 6 . 2 9 Max in Single Turn 9 | . . 1 . . . . . 1 9 Garrison Access 2 | . . . 1 . 1 . . . . Network Hub 2 | . . . . . . . . . 2 Energy Cycler 1 | . . . . . . 1 . . . Machines Sabotaged . | . . . . . . . . . . Garrisons Compromised . | . . . . . . . . . . Overloaded Fab Kills . | . . . . . . . . . . Hacking | -11 -10 -9 -8 -7 -6 -6 -6 -6 -6 --------- Run | Scr Mat Mat Mat Fac Fac Ext Cet Arc Hub Machines Accessed 43 | . 7 8 2 6 9 5 3 1 2 Terminals 31 | . 7 7 . 2 5 5 3 . 2 Fabricators 2 | . . . . 1 1 . . . . Repair Stations . | . . . . . . . . . . Recycling Units 4 | . . . 1 1 2 . . . . Scanalyzers 2 | . . 1 . 1 . . . . . Garrison Access 3 | . . . 1 1 1 . . . . Total Hacks 156 | . 30 31 5 13 35 20 8 6 8 Successful 93 | . 16 20 3 10 18 12 3 6 5 Failed 63 | . 14 11 2 3 17 8 5 . 3 Catastrophic 6 | . . 2 . . 2 1 . . 1 Database Lockouts . | . . . . . . . . . . Manual 97 | . 25 24 . 5 21 15 2 . 5 Terminals 127 | . 30 26 . 7 28 20 8 . 8 Fabricators 5 | . . . . 2 3 . . . . Repair Stations . | . . . . . . . . . . Recycling Units 6 | . . . 3 1 2 . . . . Scanalyzers 7 | . . 5 . 2 . . . . . Garrison Access 5 | . . . 2 1 2 . . . . Terminal Hacks 41 | . 6 6 . 3 8 6 3 6 3 Record 11 | . . . . . . 2 3 6 . Part Schematic 3 | . 2 . . . 1 . . . . Robot Analysis 1 | . . . . . . 1 . . . Prototype ID Bank 2 | . 1 . . . 1 . . . . Open Door 1 | . . . . . . 1 . . . Open DSF 2 | . . . . 1 1 . . . . Level Access Points 2 | . . . . . 1 1 . . . Emergency Access Points 1 | . . 1 . . . . . . . Garrison Index 1 | . . . . . . . . . 1 Unreport Threat 8 | . 1 2 . . 2 1 . . 2 Transport Status 3 | . 1 . . 1 1 . . . . Recall Investigation 1 | . . . . 1 . . . . . Recall Reinforcements 1 | . . 1 . . . . . . . Hauler Manifests 4 | . 1 2 . . 1 . . . . Fabricator Hacks 4 | . . . . 2 2 . . . . Load Schematic 2 | . . . . 1 1 . . . . Build 2 | . . . . 1 1 . . . . Repair Station Hacks . | . . . . . . . . . . Recycling Unit Hacks 5 | . . . 2 1 2 . . . . Report Inventory 4 | . . . 1 1 2 . . . . Retrieve Components 1 | . . . 1 . . . . . . Scanalyzer 7 | . . 5 . 2 . . . . . Insert Component 3 | . . 2 . 1 . . . . . Analyze 4 | . . 3 . 1 . . . . . Garrison Access Hacks 2 | . . . 1 . 1 . . . . Seal Access 2 | . . . 1 . 1 . . . . Unauthorized Hacks 34 | . 10 9 . 2 5 6 . . 2 Terminals 34 | . 10 9 . 2 5 6 . . 2 Track 3 | . 2 . . . . 1 . . . Assimilate 2 | . . . . . . 1 . . 1 Botnet 23 | . 6 7 . 1 4 4 . . 1 Operators 6 | . 2 2 . 1 1 . . . . Fabricators . | . . . . . . . . . . Repair Stations . | . . . . . . . . . . Recycling Units . | . . . . . . . . . . Scanalyzers . | . . . . . . . . . . Garrison Access . | . . . . . . . . . . Data Cores Recovered 1 | . . . . . 1 . . . . Used . | . . . . . . . . . . Hacking Detections 33 | . 6 7 1 4 7 3 3 . 2 Full Trace Events 13 | . 3 5 . 1 3 . 1 . . Feedback Events 2 | . . . . . 2 . . . . Hackware Fried 2 | . . . . . 2 . . . . Feedback Blocked . | . . . . . . . . . . Robot Schematics Acquired . | . . . . . . . . . . Robots Built . | . . . . . . . . . . Authchips . | . . . . . . . . . . Time . | . . . . . . . . . . Total Robot Build Rating . | . . . . . . . . . . Part Schematics Acquired 6 | . 2 2 . 1 1 . . . . Parts Built 2 | . . . . 1 1 . . . . Authchips . | . . . . . . . . . . Time 108 | . . . . 73 35 . . . . Total Part Build Rating 9 | . . . . 3 6 . . . . Parts Repaired . | . . . . . . . . . . Time . | . . . . . . . . . . Parts Recycled . | . . . . . . . . . . Recycled Matter . | . . . . . . . . . . Retrieved Matter . | . . . . . . . . . . Retrieved Components 5 | . . . 5 . . . . . . Parts Scanalyzed 3 | . . 2 . 1 . . . . . Part Schematics Acquired 3 | . . 2 . 1 . . . . . Parts Damaged . | . . . . . . . . . . Bothacking | -11 -10 -9 -8 -7 -6 -6 -6 -6 -6 ------------ Run | Scr Mat Mat Mat Fac Fac Ext Cet Arc Hub Used RIF Installer . | . . . . . . . . . . Robots Hacked . | . . . . . . . . . . Non-combat . | . . . . . . . . . . Combat . | . . . . . . . . . . Robot Hacks Applied . | . . . . . . . . . . Relay Couplers Released . | . . . . . . . . . . Fabnet Peak Effective % . | . . . . . . . . . . Robots Rewired 19 | . . . . . . 19 . . . Allies Hacked . | . . . . . . . . . . Hacks Repelled . | . . . . . . . . . . Allies | -11 -10 -9 -8 -7 -6 -6 -6 -6 -6 -------- Run | Scr Mat Mat Mat Fac Fac Ext Cet Arc Hub Total Allies 27 | . . . . . . 21 5 . 1 Largest Group 9 | . . . . . . 9 7 . . Highest-Rated Group 672 | . . . . . . 327 672 . . Highest-Rated Ally 159 | . . . . . . 159 153 . . Total Orders . | . . . . . . . . . . Ally Attacks 245 | . . . . . . 197 48 . . Total Damage 5421 | . . . . . . 4291 1130 . . Kills 39 | . . . . . . 32 7 . . Allies Corrupted 1 | . . . . . . 1 . . . Allies Melted . | . . . . . . . . . . Intel | -11 -10 -9 -8 -7 -6 -6 -6 -6 -6 ------- Run | Scr Mat Mat Mat Fac Fac Ext Cet Arc Hub Robot Analysis Total 1 | . . . . . . 1 . . . Derelict Logs Recovered . | . . . . . . . . . . Drone Launches . | . . . . . . . . . . Drone Recoveries . | . . . . . . . . . . Exploration | -11 -10 -9 -8 -7 -6 -6 -6 -6 -6 ------------- Run | Scr Mat Mat Mat Fac Fac Ext Cet Arc Hub Turns Passed 7991 | 54 1229 2079 761 812 827 1053 320 477 379 Spaces Moved 6315 | 40 758 985 459 767 1265 1012 340 325 364 Core 21 | 1 . . . . 20 . . . . Treads 894 | . . 678 163 . . . . 53 . Legs 113 | . . . . 29 . . . . 84 Wheels 1267 | 39 758 307 . 163 . . . . . Hover 3748 | . . . 296 463 1085 1012 340 272 280 Flight 272 | . . . . 112 160 . . . . Fastest Speed 40 | 50 100 110 48 40 40 52 52 48 48 Average Speed 83 | 98 130 155 89 61 50 52 57 78 64 Slowest Speed 280 | 100 145 160 160 280 100 56 106 240 120 Overloaded Moves . | . . . . . . . . . . Propulsion Burnouts . | . . . . . . . . . . Robots Hopped 2 | . . . . 1 1 . . . . Cave-ins Triggered . | . . . . . . . . . . Exploration Rate (%) 55 | 3 96 75 29 18 32 83 91 100 31 Regions Visited 9 Branch Regions 4 Pre-discovered Areas . | . . . . . . . . . . Known Exits Taken 7 | . . 1 1 1 1 1 1 1 . Unknown Exits Taken 2 | 1 1 . . . . . . . . Scrap Searched . | . . . . . . . . . . Spaces Dug 44 | . . . . 1 6 24 1 1 11 Terrain Destroyed 521 | . . . . 1 6 24 128 1 361 Melee 20 | . . . . 1 6 . 1 1 11 Projectile . | . . . . . . . . . . AOE 501 | . . . . . . 24 127 . 350 Terrain Rammed . | . . . . . . . . . . Walls Destroyed . | . . . . . . . . . . Machines Disabled . | . . . . . . . . . . Actions | -11 -10 -9 -8 -7 -6 -6 -6 -6 -6 --------- Run | Scr Mat Mat Mat Fac Fac Ext Cet Arc Hub Total 8110 | 51 899 1303 654 981 1415 1467 429 460 451 Wait 705 | . 20 97 53 64 71 282 43 37 38 Move 6302 | 39 757 984 458 764 1262 1011 339 324 364 Hop 2 | . . . . 1 1 . . . . Pick Up 135 | 6 30 21 17 22 14 8 5 7 5 Fast Attach 59 | 6 3 5 5 8 16 2 1 11 2 Attach 61 | . 4 8 14 17 6 2 4 3 3 Detach 24 | . 1 1 2 6 6 . 3 5 . Swap 88 | . 13 26 4 12 4 6 9 8 6 Drop 138 | . 17 35 20 19 12 12 4 14 5 Fire 350 | . 54 125 81 65 . 1 11 11 2 Melee 148 | . . . . 3 23 47 10 39 26 Ram 1 | . . . . . . . . 1 . Kick . | . . . . . . . . . . Crush 1 | . . 1 . . . . . . . Escape Stasis 14 | . . . . . . 14 . . . Rewire 82 | . . . . . . 82 . . . Trap . | . . . . . . . . . . Miscellaneous . | . . . . . . . . . . Route ------- -11/Scrapyard -10/Materials (discovered 4 exits: *Mat x3 / [*Min]) -9/Materials (discovered 3 exits: *Mat x2 / [*Min]) -8/Materials -7/Factory -6/Factory (discovered 6 exits: *Fac x4 / *Low / *Ext) -6/Extension (discovered 3 exits: *Fac x2 / *Cet) -6/Cetus (discovered 2 exits: *Fac / *Arc) -6/Archives (discovered 3 exits: *Fac / *Hub x2) -6/Hub_04(d) (discovered 1 exit: *Fac) History --------- Turn | Location | Event 28 | -11/Scrapyard | Discovered new exit (range 16) 55 | -11/Scrapyard | Entered Materials 243 | -10/Materials | Discovered new exit (range 11) 319 | -10/Materials | Build established: Mutant 517 | -10/Materials | Discovered new exit (range 11) 565 | -10/Materials | Discovered new exit (range 10) 713 | -10/Materials | Discovered new exit (range 8) 745 | -10/Materials | Lost 4 parts (1p2n1w) 745 | -10/Materials | Core integrity fell below 50% 1284 | -10/Materials | Entered another Materials area 1284 | -9/Materials | Evolved 2 slots: Propulsion x1, Utility x1 1907 | -9/Materials | Discovered new exit (range 5) 2279 | -9/Materials | Build established: Scavenger-Mutant 2933 | -9/Materials | Discovered new exit (range 5) 3022 | -9/Materials | Discovered new exit (range 16) 3361 | -9/Materials | Identified exit to Materials 3363 | -9/Materials | Entered another Materials area 3363 | -8/Materials | Evolved 2 slots: Propulsion x1, Utility x1 3488 | -8/Materials | Garrison activated, responded to threat 3929 | -8/Materials | Discovered new exit (range 8) 3932 | -8/Materials | Identified exit to Factory 3982 | -8/Materials | Garrison activated, responded to threat 4065 | -8/Materials | Lost 3 parts (1p1n1u) 4124 | -8/Materials | Entered Factory 4124 | -7/Factory | Evolved 2 slots: Utility x2 4187 | -7/Factory | Discovered new exit (range 6) 4195 | -7/Factory | Identified exit to Factory 4299 | -7/Factory | Fabricated Hacking Suite (x1) 4392 | -7/Factory | Lost 12 parts (5n4u3w) 4512 | -7/Factory | Garrison activated, responded to threat 4678 | -7/Factory | System corruption reached 10% 4881 | -7/Factory | Lost 4 parts (2n1u1w) 4898 | -7/Factory | Core integrity fell below 50% 4928 | -7/Factory | Lost 4 parts (1p3n) 4936 | -7/Factory | Entered another Factory area 4936 | -6/Factory | Evolved 2 slots: Utility x2 4982 | -6/Factory | Identified exit to Factory 4995 | -6/Factory | Identified exit to DSF 5108 | -6/Factory | Discovered new exit (range 22) 5124 | -6/Factory | Identified exit to Extension 5196 | -6/Factory | Build established: Hacker-Mutant 5297 | -6/Factory | Hacking Suite fried by hacking feedback 5297 | -6/Factory | Hacking Suite fried by hacking feedback 5332 | -6/Factory | Fabricated Adv. Hacking Suite (x1) 5405 | -6/Factory | Discovered new exit (range 10) 5410 | -6/Factory | Identified exit to Lower Caves 5672 | -6/Factory | Build established: Hacker-Scout 5763 | -6/Factory | Entered Extension 6241 | -6/Extension | Build established: Commander-Scout 6361 | -6/Extension | Spotted B-75 Beast 6379 | -6/Extension | Allies destroyed B-75 Beast 6385 | -6/Extension | Spotted B-75 Beast 6412 | -6/Extension | Destroyed B-75 Beast 6463 | -6/Extension | Disrupted transfer network 6556 | -6/Extension | Rescued A7 6616 | -6/Extension | Energy Cycler disabled 6664 | -6/Extension | Build established: Hacker-Scout 6795 | -6/Extension | Discovered new exit (range 6) 6812 | -6/Extension | Identified exit to Cetus 6813 | -6/Extension | First assault squad dispatched 6816 | -6/Extension | Entered Cetus 6816 | -6/Cetus | Accompanied by 2 allies (A7) 6821 | -6/Cetus | Acquired a Cetus Manufacturing Module code from A7 6826 | -6/Cetus | Spotted Cetus Guard 6827 | -6/Cetus | Spotted Cetus Guard 6827 | -6/Cetus | Spotted Cetus Guard 6828 | -6/Cetus | Spotted Cetus Guard 6833 | -6/Cetus | Destroyed Cetus Guard 6843 | -6/Cetus | Allies destroyed Cetus Guard 6843 | -6/Cetus | Destroyed Cetus Guard 6852 | -6/Cetus | Allies destroyed Cetus Guard 6877 | -6/Cetus | Lost 3 parts (1p1n1u) 6886 | -6/Cetus | Started Cetus Manufacturing Module 6911 | -6/Cetus | Manufactured an Enhanced Grunt 6936 | -6/Cetus | Manufactured an Enhanced Grunt 6961 | -6/Cetus | Manufactured an Enhanced Grunt 6975 | -6/Cetus | Escorted A7 to Cetus Mainframe 6986 | -6/Cetus | Manufactured an Enhanced Grunt 7011 | -6/Cetus | Manufactured an Enhanced Grunt 7030 | -6/Cetus | Discovered new exit (range 22) 7057 | -6/Cetus | Identified exit to Archives 7084 | -6/Cetus | Spotted Cetus Guard 7084 | -6/Cetus | Spotted Cetus Guard 7085 | -6/Cetus | Spotted Cetus Guard 7085 | -6/Cetus | Spotted Cetus Guard 7103 | -6/Cetus | Discovered exit to Factory (range 22) 7110 | -6/Cetus | Allies destroyed Cetus Guard 7115 | -6/Cetus | Extracted ID and sensor layout for unrecognized location from A7's data core 7136 | -6/Cetus | Entered Archives 7140 | -6/Archives | Build established: Hacker-Mutant 7154 | -6/Archives | Unable to access archive contents 7214 | -6/Archives | Core integrity fell below 50% 7249 | -6/Archives | Lost 3 parts (1p2n) 7423 | -6/Archives | Discovered new exit (range 22) 7433 | -6/Archives | Discovered new exit (range 20) 7446 | -6/Archives | Discovered exit to Factory (range 22) 7527 | -6/Archives | Unable to access archive contents 7601 | -6/Archives | Unable to access archive contents 7613 | -6/Archives | Identified exit to Hub_04(d) 7613 | -6/Archives | Entered Hub_04(d) 7613 | -6/Hub_04(d) | Discovered exit to Factory (range 23) 7965 | -6/Hub_04(d) | Network Hub disabled 7965 | -6/Hub_04(d) | Network Hub disabled 7971 | -6/Hub_04(d) | Spotted Lightning 7971 | -6/Hub_04(d) | Spotted Lightning 7974 | -6/Hub_04(d) | Core integrity fell below 20% 7981 | -6/Hub_04(d) | Spotted Lightning 7982 | -6/Hub_04(d) | Spotted Lightning 7983 | -6/Hub_04(d) | Spotted Lightning 7984 | -6/Hub_04(d) | Spotted Lightning 7992 | -6/Hub_04(d) | Destroyed by Lightning with EMDS Last Messages --------------- 07965_ Destroyed Adv. Signal Interpreter. 07965_ Massive razor-sharp blades shoot up from within the floor. 07965_ K-01 Serf destroyed. 07965_ ALERT: Network intrusion management efficiency at 70%. 07965_ Ambush Trap short circuited. 07965_ Backup Mainframe disabled. 07965_ G-50 Soldier emerges from a hatch in the floor. 07965_ Control Node disabled. 07965_ K-01 Serf destroyed. 07965_ U-05 Engineer destroyed. 07966_ ALERT: Hostile activity reported, dispatching reinforcements to area. 07971_ The unstable cave ceiling collapses. 07972_ Penetrated by EMDS Slug. 07978_ System corrupted: Heat flow error (+191). 07978_ Penetrated by EMDS Slug. 07987_ Acquired 7 matter. 07987_ EMDS Slug penetrates Wall. 07991_ Slug penetrates Wall. 07992_ EMDS Slug penetrates Wall. Map ----- +----------------------------------------------------+ | ???????????????????????????????????????# #?????? | | ????? %# ??????????????????????????????# #?????? | | ????#% #####?????????????????#?###### /?????? | | ???? * #?????????????????# # #?????? | | ???? [#?????????????????# """" # #?????? | | ???? #???? ??????????# """" # #?????? | | ???? !!! #???? ??????????# """" # #?????? | | ##### ! ##### ####??????# """" # #?????? | | [=! # ! # ?????# # #?????? | | ###*# ! ???# """" + #?????? | | ?##%# #??# """" # #?????? | | ?# #??# """" # #?????? | | ## ##?# """" # #?????? | | ## ??# # #?????? | | ## #### ! # #?????? | | # = ! # ##????? | | # * ! ##### ## #????? | | % #????? | | ############????? | | / #???????????? | | # ## /#???????????? | | ## !] #???????????? | | ## !]/#???????????? | | # ## !] #???????????? | | ;####### ## #???????????? | | * g ! ! @ #########???????????? | | #;; ; ;; =#######+#####???????????????? | | ;;; ## #???????????????? | | # * # # # ### #???????????????? | | # #### # ## #?# #???????????????? | | #### " #??# ##### #?# #???????????????? | | ???########??#??????#??###########???????????????? | | | | | | | | | | | | | | | | | | | | | | | | | | | | | | | | | | | | | +----------------------------------------------------+ Best States ------------- Heat Dissipation 51 Energy Generation 21 Energy Capacity 325 Matter Stores 300 Matter Capacity 300 Sight Range 22 Robot Scan Range 15 Terrain Scan Density 10 ECM Strength 2 Power Amplification 20 Armor Coverage 600 Core Shielding 20 Utility Shielding 66 Evasion (%) 64 Targeting Accuracy 6 Recoil Reduction 4 Offensive Hacking 38 Defensive Hacking 12 Item Schematics ----------------- Hcp. Matter Pod | -10/Materials | Hacked Hcp. Storage Unit | -10/Materials | Hacked Hacking Suite | -9/Materials | Scanalyzed Imp. Hover Unit | -9/Materials | Scanalyzed Xenon Bombardment Thruster | -7/Factory | Scanalyzed Adv. Hacking Suite | -6/Factory | Hacked Robot Schematics ------------------ None Fabricated ------------ Hacking Suite | x1 | -7/Factory Adv. Hacking Suite | x1 | -6/Factory Alien Tech Used ----------------- None Achievements -------------- Project G-00 Challenges ------------ None Game ------ Seed BattleEnergyScanner Manual? 0 Play Time 02:59:27 Cumulative 158.0 hours Start 2022.04.08 @ 11:34:43 End 2022.04.08 @ 14:51:21 Sessions 3 Manual Loads 0 Difficulty Rogue Special Mode None Game No. 63 Rogue 63 Adventurer 0 Explorer 0 Win Type - Total 1 Types 1/0/0/0/0/0/0/0/0 Lore% 53 Gallery% 64 Achievement% 52 Wizard Run 0 Options --------- ASCII 1 Keyboard 1 Movement Numpad Keybinds 0 Fullscreen 1 Font 36/Smallcaps Map View 76x50 Tactical HUD 1 Map Filters NONE Filters NONE Steam 1 RUN: cb25197d-4e28-43a7-a695-f6ba0e7450cf